fUST/lending_fUST_20250509
["ID","MTS","AMOUNT","RATE_DAILY","PERIOD"]
[360301146,1746732631905,-500.0,0.00011023,2]
[360301147,1746732631915,-500.0,0.00011023,2]
[360301148,1746732631924,-500.0,0.00011023,2]
[360301149,1746732631934,-500.0,0.00011023,2]
[360301150,1746732631943,-500.0,0.00011023,2]
[360301151,1746732631954,-500.0,0.00011023,2]
[360301152,1746732631964,-500.0,0.00011023,2]
[360301153,1746732631973,-500.0,0.00011023,2]
[360301154,1746732631983,-500.0,0.00011023,2]
[360301155,1746732631996,-500.0,0.00011023,2]
[360301156,1746732632006,-500.0,0.00011023,2]
[360301157,1746732632015,-500.0,0.00011023,2]
[360301158,1746732632026,-500.0,0.00011023,2]
[360301160,1746732632036,-500.0,0.00011023,2]
[360301162,1746732632046,-500.0,0.00011023,2]
[360301163,1746732632056,-500.0,0.00011023,2]
[360301165,1746732632066,-500.0,0.00011023,2]
[360301167,1746732632076,-500.0,0.00011023,2]
[360301168,1746732632085,-500.0,0.00011023,2]
[360301169,1746732632095,-473.33055426,0.00011023,2]
[360301170,1746732632104,-500.0,0.00011023,2]
[360301171,1746732632114,-500.0,0.00011023,2]
[360301172,1746732632124,-500.0,0.00011023,2]
[360301173,1746732632133,-500.0,0.00011023,2]
[360301174,1746732632142,-500.0,0.00011023,2]
[360301175,1746732632152,-500.0,0.00011023,2]
[360301176,1746732632161,-500.0,0.00011023,2]
[360301177,1746732632171,-500.0,0.00011023,2]
[360301178,1746732632181,-300.0,0.00011023,2]
[360301179,1746732632192,-500.0,0.00011023,2]
[360301180,1746732632202,-500.0,0.00011023,2]
[360301181,1746732632215,-500.0,0.00011023,2]
[360301182,1746732632225,-500.0,0.00011023,2]
[360301183,1746732632237,-500.0,0.00011023,2]
[360301184,1746732632247,-500.0,0.00011023,2]
[360301185,1746732632256,-500.0,0.00011023,2]
[360301186,1746732632266,-500.0,0.00011023,2]
[360301187,1746732632275,-500.0,0.00011023,2]
[360301188,1746732632285,-500.0,0.00011023,2]
[360301189,1746732632298,-400.0,0.00011024,2]
[360301190,1746732632307,-400.0,0.00011024,2]
[360301191,1746732632316,-406.7,0.00011024,2]
[360301192,1746732632326,-400.0,0.00011024,2]
[360301193,1746732632335,-424.43743337,0.00011024,2]
[360301194,1746732632369,-2282.89536943,0.00011024,2]
[360301195,1746732632378,-400.0,0.00011025,2]
[360301196,1746732632387,-400.0,0.00011025,2]
[360301197,1746732632397,-188.3,0.00011025,2]
[360301198,1746732632406,-400.0,0.00011025,2]
[360301199,1746732632415,-653.11,0.00011025,2]
[360301200,1746732632425,-400.0,0.00011025,2]
[360301201,1746732632434,-500.0,0.00011026,2]
[360301202,1746732632443,-353.75539183,0.00011026,2]
[360301203,1746732632453,-212.10144473,0.00011027,3]
[360301204,1746732632463,-8206.58900999,0.00011027,3]
[360301205,1746732632475,-26938.10227379,0.00011027,3]
[360301206,1746732632484,-14094.40162855,0.00011027,2]
[360301207,1746732632563,-262.60356982,0.00011027,2]
[360301208,1746732632575,-727.10796862,0.00011027,2]
[360301228,1746732637926,-400.0,0.00011024,2]
[360301229,1746732637937,-400.0,0.00011024,2]
[360301230,1746732637946,-40030.17095273,0.00011027,2]
[360301338,1746732642964,-154.18501736,0.00010928,2]
[360301340,1746732642974,-9959.81498264,0.00011027,2]
[360301532,1746733792751,5000.0,0.00010206,2]
[360301546,1746733831966,-160.0,0.00010812,2]
[360301547,1746733831976,-154.18501735,0.00010921,2]
[360301548,1746733831986,-529.8278699,0.00010924,2]
[360301549,1746733831996,-1200.0,0.00011017,2]
[360301550,1746733832005,-300.0,0.00011017,2]
[360301551,1746733832015,-214.0,0.00011017,2]
[360301552,1746733832024,-300.0,0.00011017,2]
[360301553,1746733832034,-500.0,0.00011017,2]
[360301554,1746733832044,-500.0,0.00011017,2]
[360301555,1746733832053,-560.873732,0.00011017,2]
[360301556,1746733832062,-500.0,0.00011017,2]
[360301557,1746733832072,-633.47911104,0.00011017,2]
[360301558,1746733832082,-500.0,0.00011017,2]
[360301559,1746733832092,-28.05210149,0.00011017,2]
[360301560,1746733832104,-471.94789851,0.00011017,2]
[360301561,1746733832114,-500.0,0.00011017,2]
[360301562,1746733832123,-211.55210149,0.00011017,2]
[360301566,1746733832150,-288.44789851,0.00011017,2]
[360301568,1746733832162,-191.82159218,0.00011017,2]
[360301571,1746733832184,-308.17840782,0.00011017,2]
[360301572,1746733832194,-500.0,0.00011017,2]
[360301573,1746733832203,-500.0,0.00011017,2]
[360301574,1746733832212,-500.0,0.00011017,2]
[360301575,1746733832226,-500.0,0.00011017,2]
[360301576,1746733832235,-500.0,0.00011017,2]
[360301577,1746733832245,-500.0,0.00011017,2]
[360301578,1746733832254,-500.0,0.00011017,2]
[360301579,1746733832264,-500.0,0.00011017,2]
[360301580,1746733832274,-500.0,0.00011017,2]
[360301581,1746733832284,-500.0,0.00011017,2]
[360301582,1746733832294,-500.0,0.00011017,2]
[360301583,1746733832304,-500.0,0.00011017,2]
[360301585,1746733832313,-500.0,0.00011017,2]
[360301587,1746733832323,-500.0,0.00011017,2]
[360301588,1746733832332,-500.0,0.00011017,2]
[360301590,1746733832342,-500.0,0.00011017,2]
[360301591,1746733832352,-500.0,0.00011017,2]
[360301592,1746733832362,-500.0,0.00011017,2]
[360301593,1746733832372,-500.0,0.00011017,2]
[360301594,1746733832382,-400.0,0.00011018,2]
[360301595,1746733832391,-400.0,0.00011018,2]
[360301596,1746733832401,-400.0,0.00011018,2]
[360301597,1746733832410,-347.12922093,0.00011018,2]
[360301598,1746733832419,-400.0,0.00011018,2]
[360301599,1746733832428,-349.60213125,0.00011018,2]
[360301612,1746733838072,-500.0,0.00011017,2]
[360301613,1746733838082,-589.09672425,0.00011017,2]
[360301614,1746733838092,-50.39786875,0.00011018,2]
[360301615,1746733838102,-400.0,0.00011018,2]
[360301616,1746733838112,-400.0,0.00011018,2]
[360301617,1746733838121,-400.0,0.00011018,2]
[360301618,1746733838131,-400.0,0.00011018,2]
[360301619,1746733838141,-400.0,0.00011018,2]
[360301620,1746733838152,-400.0,0.00011018,2]
[360301621,1746733838162,-400.0,0.00011018,2]
[360301622,1746733838171,-230.2,0.00011018,2]
[360301623,1746733838180,-313.52802009,0.00011018,2]
[360301624,1746733838196,-86.47197991,0.00011018,2]
[360301625,1746733838206,-500.0,0.00011018,2]
[360301626,1746733838216,-400.0,0.00011018,2]
[360301627,1746733838226,-259.02424956,0.00011018,2]
[360301635,1746733840332,-3097.05725676,0.00011018,2]
[360301643,1746733843135,-400.0,0.00011019,2]
[360301644,1746733843144,-516.1148014,0.00011019,2]
[360301645,1746733843153,-400.0,0.00011019,2]
[360301646,1746733843162,-327.63066783,0.00011019,2]
[360301647,1746733843171,-400.0,0.00011019,2]
[360301648,1746733843180,-400.0,0.00011019,2]
[360301649,1746733843190,-400.0,0.00011019,2]
[360301650,1746733843199,-403.79518038,0.00011019,2]
[360301651,1746733843209,-348.00712707,0.00011019,2]
[360301652,1746733843218,-401.33088213,0.00011019,2]
[360301653,1746733843227,-518.8613035,0.00011019,2]
[360301654,1746733843237,-400.0,0.0001102,2]
[360301655,1746733843248,-145.26003769,0.0001102,2]
[360301657,1746733846109,-1475.10996231,0.0001102,2]
[360301658,1746733846119,-625.9,0.0001102,2]
[360301659,1746733846128,-400.0,0.0001102,2]
[360301660,1746733846138,-308.365232,0.00011021,2]
[360301661,1746733846147,-400.0,0.00011021,2]
[360301662,1746733846156,-400.0,0.00011021,2]
[360301663,1746733846166,-400.0,0.00011021,2]
[360301664,1746733846176,-400.0,0.00011021,2]
[360301665,1746733846186,-400.0,0.00011021,2]
[360301666,1746733846195,-400.0,0.00011021,2]
[360301667,1746733846204,-400.0,0.00011021,2]
[360301668,1746733846214,-400.0,0.00011021,2]
[360301669,1746733846224,-400.0,0.00011021,2]
[360301670,1746733846233,-400.0,0.00011021,2]
[360301671,1746733846243,-400.0,0.00011021,2]
[360301672,1746733846253,-400.0,0.00011021,2]
[360301673,1746733846263,-400.0,0.00011021,2]
[360301674,1746733846272,-489.57,0.00011021,2]
[360301675,1746733846282,-400.0,0.00011021,2]
[360301676,1746733846292,-210.73700006,0.00011021,2]
[360301677,1746733846302,-400.0,0.00011021,2]
[360301678,1746733846312,-400.0,0.00011021,2]
[360301679,1746733846322,-400.0,0.00011021,2]
[360301680,1746733846332,-400.0,0.00011021,2]
[360301681,1746733846343,-540.42,0.00011021,2]
[360301682,1746733846355,-400.0,0.00011021,2]
[360301683,1746733846364,-400.19754754,0.00011021,2]
[360301684,1746733846375,-400.0,0.00011021,2]
[360301685,1746733846386,-400.0,0.00011021,2]
[360301686,1746733846396,-400.0,0.00011021,2]
[360301687,1746733846407,-400.0,0.00011023,2]
[360301688,1746733846417,-400.0,0.00011023,2]
[360301689,1746733846428,-400.0,0.00011023,2]
[360301690,1746733846437,-400.96,0.00011023,2]
[360301691,1746733846446,-1200.0,0.0001103,2]
[360301692,1746733846456,-400.0,0.00011292,2]
[360301693,1746733846466,-380.69271621,0.00011292,2]
[360301694,1746733846475,-161.47,0.00011292,2]
[360301695,1746733846485,-266.33,0.00011292,2]
[360301696,1746733846494,-400.0,0.00011292,2]
[360301697,1746733846504,-489.92,0.00011292,2]
[360301698,1746733846514,-465.14635364,0.00011292,2]
[360301699,1746733846523,-503.41,0.00011292,2]
[360301700,1746733846533,-351.34,0.00011292,2]
[360301701,1746733846542,-340.41077965,0.00011292,2]
[360301702,1746733846551,-400.0,0.00011292,2]
[360301703,1746733846728,-400.0,0.00011293,2]
[360301704,1746733846738,-400.0,0.00011294,2]
[360301705,1746733846748,-1620.37,0.00011294,2]
[360301706,1746733846758,-625.9,0.00011294,2]
[360301707,1746733846768,-176.44962264,0.00011294,2]
[360301710,1746733981792,-155.27712225,0.00010261,2]
[360301711,1746733988496,-137.18284585,0.00010261,2]
[360301712,1746734095877,-235.11490793,0.00010225,2]
[360301715,1746734109375,-14.88509207,0.00010225,2]
[360301722,1746734455668,266.0203103,0.00010007,2]
[360304444,1746735032146,-180.58944522,0.00010913,2]
[360304445,1746735032156,-803.56853371,0.00010913,2]
[360304446,1746735032167,-180.58944521,0.00010915,2]
[360304447,1746735032176,-180.58944521,0.00010916,2]
[360304448,1746735032185,-129.66313065,0.00011008,2]
[360304473,1746735036636,-77.73686935,0.00011008,2]
[360304475,1746735036646,-151.0,0.00011008,2]
[360304477,1746735036655,-300.0,0.0001101,2]
[360304479,1746735036665,-500.0,0.00011011,2]
[360304481,1746735036675,-500.0,0.00011011,2]
[360304483,1746735036684,-500.0,0.00011011,2]
[360304485,1746735036693,-500.0,0.00011011,2]
[360304487,1746735036703,-152.4554076,0.00011011,2]
[360304489,1746735036712,-500.0,0.00011011,2]
[360304491,1746735036722,-500.0,0.00011011,2]
[360304493,1746735036731,-500.0,0.00011011,2]
[360304495,1746735036740,-500.0,0.00011011,2]
[360304497,1746735036749,-500.0,0.00011011,2]
[360304499,1746735036759,-500.0,0.00011011,2]
[360304501,1746735036768,-500.0,0.00011011,2]
[360304503,1746735036777,-500.0,0.00011011,2]
[360304504,1746735036787,-500.0,0.00011011,2]
[360304505,1746735036799,-500.0,0.00011011,2]
[360304506,1746735036808,-500.0,0.00011011,2]
[360304507,1746735036818,-500.0,0.00011011,2]
[360304508,1746735036827,-67.78456195,0.00011011,2]
[360304509,1746735036839,-432.21543805,0.00011011,2]
[360304510,1746735036848,-500.0,0.00011011,2]
[360304511,1746735036857,-562.47946153,0.00011011,2]
[360304512,1746735036866,-500.0,0.00011011,2]
[360304513,1746735036876,-500.0,0.00011011,2]
[360304514,1746735036885,-323.89736588,0.00011011,2]
[360304515,1746735036895,-500.0,0.00011011,2]
[360304516,1746735036904,-623.67102936,0.00011011,2]
[360304517,1746735036914,-500.0,0.00011011,2]
[360304518,1746735036925,-500.0,0.00011011,2]
[360304519,1746735036934,-500.0,0.00011011,2]
[360304520,1746735036944,-500.0,0.00011011,2]
[360304521,1746735036954,-500.0,0.00011011,2]
[360304522,1746735036965,-500.0,0.00011011,2]
[360304523,1746735036975,-500.0,0.00011011,2]
[360304524,1746735036984,-500.0,0.00011011,2]
[360304525,1746735036994,-500.0,0.00011011,2]
[360304526,1746735037005,-412.34363169,0.00011011,2]
[360304527,1746735037015,-500.0,0.00011011,2]
[360304528,1746735037024,-500.0,0.00011011,2]
[360304529,1746735037034,-500.0,0.00011011,2]
[360304530,1746735037043,-500.0,0.00011011,2]
[360304531,1746735037054,-500.0,0.00011011,2]
[360304532,1746735037063,-500.0,0.00011011,2]
[360304533,1746735037073,-500.0,0.00011011,2]
[360304534,1746735037084,-500.0,0.00011011,2]
[360304535,1746735037097,-500.0,0.00011011,2]
[360304536,1746735037107,-500.0,0.00011011,2]
[360304537,1746735037116,-500.0,0.00011011,2]
[360304538,1746735037127,-500.0,0.00011011,2]
[360304539,1746735037139,-500.0,0.00011011,2]
[360304540,1746735037151,-500.0,0.00011011,2]
[360304541,1746735037162,-500.0,0.00011011,2]
[360304542,1746735037171,-500.0,0.00011011,2]
[360304543,1746735037180,-500.0,0.00011011,2]
[360304544,1746735037190,-500.0,0.00011011,2]
[360304545,1746735037199,-500.0,0.00011011,2]
[360304546,1746735037210,-582.85795287,0.00011011,2]
[360304547,1746735037219,-179.01800104,0.00011011,2]
[360304548,1746735037229,-163.43963184,0.00011011,2]
[360304549,1746735037239,-300.0,0.00011011,2]
[360304550,1746735037248,-300.0,0.00011011,2]
[360304551,1746735037258,-300.0,0.00011011,2]
[360304552,1746735037269,-1200.0,0.00011011,2]
[360304553,1746735037279,-28115.75302702,0.00011012,3]
[360304554,1746735037289,-50000.0,0.00011012,2]
[360304555,1746735037300,-310.17511724,0.00011012,2]
[360304556,1746735037310,-110433.30773188,0.00011013,2]
[360304557,1746735037320,-212.10144473,0.00011013,3]
[360304558,1746735037330,-400.0,0.00011014,2]
[360304559,1746735037340,-400.0,0.00011014,2]
[360304560,1746735037351,-400.0,0.00011014,2]
[360304561,1746735037360,-400.0,0.00011014,2]
[360304562,1746735037370,-400.0,0.00011014,2]
[360304563,1746735037382,-400.0,0.00011014,2]
[360304564,1746735037392,-400.0,0.00011014,2]
[360304565,1746735037402,-400.0,0.00011014,2]
[360304566,1746735037412,-400.0,0.00011014,2]
[360304567,1746735037421,-398.0,0.00011014,2]
[360304568,1746735037430,-400.0,0.00011014,2]
[360304569,1746735037440,-400.0,0.00011014,2]
[360304570,1746735037449,-400.0,0.00011014,2]
[360304571,1746735037459,-400.0,0.00011014,2]
[360304572,1746735037468,-400.0,0.00011014,2]
[360304573,1746735037478,-400.0,0.00011014,2]
[360304574,1746735037487,-400.0,0.00011014,2]
[360304575,1746735037497,-400.0,0.00011014,2]
[360304576,1746735037507,-400.0,0.00011014,2]
[360304577,1746735037516,-1524.68,0.00011014,2]
[360304578,1746735037527,-400.0,0.00011014,2]
[360304579,1746735037536,-400.0,0.00011014,2]
[360304580,1746735037548,-400.0,0.00011014,2]
[360304581,1746735037558,-400.0,0.00011014,2]
[360304582,1746735037567,-400.0,0.00011014,2]
[360304583,1746735037577,-1158.59,0.00011014,2]
[360304584,1746735037587,-400.0,0.00011014,2]
[360304585,1746735037598,-400.0,0.00011014,2]
[360304586,1746735037608,-400.0,0.00011014,2]
[360304587,1746735037618,-485.17318548,0.00011014,2]
[360304588,1746735037627,-400.0,0.00011014,2]
[360304589,1746735037638,-400.0,0.00011014,2]
[360304590,1746735037647,-400.0,0.00011014,2]
[360304591,1746735037657,-400.0,0.00011014,2]
[360304593,1746735037667,-400.0,0.00011014,2]
[360304595,1746735037677,-400.0,0.00011014,2]
[360304596,1746735037687,-400.0,0.00011014,2]
[360304597,1746735037697,-754.99,0.00011014,2]
[360304598,1746735037707,-400.0,0.00011014,2]
[360304600,1746735037717,-652.20111982,0.00011014,2]
[360304601,1746735037728,-400.0,0.00011014,2]
[360304602,1746735037737,-400.0,0.00011014,2]
[360304603,1746735037748,-400.0,0.00011014,2]
[360304604,1746735037759,-400.0,0.00011016,2]
[360304605,1746735037769,-400.0,0.00011016,2]
[360304607,1746735037779,-400.0,0.00011016,2]
[360304609,1746735037789,-400.0,0.00011016,2]
[360304611,1746735037802,-400.0,0.00011016,2]
[360304613,1746735037811,-400.0,0.00011016,2]
[360304616,1746735037821,-400.0,0.00011016,2]
[360304618,1746735037831,-400.0,0.00011016,2]
[360304620,1746735037840,-400.0,0.00011016,2]
[360304621,1746735037850,-400.0,0.00011016,2]
[360304622,1746735037860,-309.33180774,0.00011016,2]
[360304623,1746735037869,-400.0,0.00011016,2]
[360304625,1746735037879,-400.0,0.00011016,2]
[360304627,1746735037889,-400.0,0.00011016,2]
[360304629,1746735037898,-400.0,0.00011016,2]
[360304631,1746735037908,-400.0,0.00011016,2]
[360304633,1746735037917,-400.0,0.00011016,2]
[360304634,1746735037927,-400.0,0.00011016,2]
[360304635,1746735037937,-400.0,0.00011016,2]
[360304636,1746735037946,-400.0,0.00011016,2]
[360304637,1746735037955,-400.0,0.00011016,2]
[360304638,1746735037965,-400.0,0.00011016,2]
[360304639,1746735037974,-400.0,0.00011016,2]
[360304640,1746735037984,-400.0,0.00011016,2]
[360304641,1746735037995,-400.0,0.00011016,2]
[360304642,1746735038005,-400.0,0.00011016,2]
[360304643,1746735038014,-400.0,0.00011016,2]
[360304644,1746735038023,-400.0,0.00011016,2]
[360304645,1746735038033,-400.0,0.00011016,2]
[360304646,1746735038043,-307.54950482,0.00011016,2]
[360304647,1746735038053,-400.0,0.00011016,2]
[360304648,1746735038063,-400.0,0.00011016,2]
[360304649,1746735038075,-400.0,0.00011016,2]
[360304650,1746735038084,-151.0,0.00011016,2]
[360304651,1746735038094,-151.0,0.00011016,2]
[360304652,1746735038104,-151.0,0.00011016,2]
[360304653,1746735038115,-151.0,0.00011016,2]
[360304654,1746735038124,-296.04800279,0.00011016,2]
[360304655,1746735038134,-400.0,0.00011016,2]
[360304657,1746735038144,-400.0,0.00011016,2]
[360304658,1746735038155,-400.0,0.00011016,2]
[360304659,1746735038165,-400.0,0.00011016,2]
[360304660,1746735038175,-400.0,0.00011016,2]
[360304661,1746735038184,-400.0,0.00011016,2]
[360304662,1746735038194,-400.0,0.00011016,2]
[360304663,1746735038204,-400.0,0.00011016,2]
[360304664,1746735038214,-400.0,0.00011016,2]
[360304665,1746735038224,-400.0,0.00011016,2]
[360304666,1746735038234,-400.0,0.00011016,2]
[360304667,1746735038244,-400.0,0.00011016,2]
[360304668,1746735038254,-400.0,0.00011016,2]
[360304669,1746735038264,-400.0,0.00011016,2]
[360304670,1746735038274,-400.0,0.00011016,2]
[360304671,1746735038283,-400.0,0.00011016,2]
[360304672,1746735038296,-400.0,0.00011016,2]
[360304673,1746735038306,-400.0,0.00011016,2]
[360304674,1746735038316,-400.0,0.00011016,2]
[360304675,1746735038326,-400.0,0.00011016,2]
[360304676,1746735038335,-400.0,0.00011016,2]
[360304677,1746735038344,-500.0,0.00011017,2]
[360304678,1746735038354,-400.0,0.00011017,2]
[360304679,1746735038364,-500.0,0.00011017,2]
[360304680,1746735038374,-500.0,0.00011017,2]
[360304681,1746735038383,-500.0,0.00011017,2]
[360304682,1746735038392,-500.0,0.00011017,2]
[360304683,1746735038403,-500.0,0.00011017,2]
[360304684,1746735038412,-500.0,0.00011017,2]
[360304685,1746735038422,-151.0,0.00011017,2]
[360304686,1746735038432,-151.0,0.00011017,2]
[360304687,1746735038441,-400.0,0.00011019,2]
[360304688,1746735038450,-400.0,0.00011019,2]
[360304689,1746735038460,-500.0,0.00011173,2]
[360304691,1746735038469,-500.0,0.00011173,2]
[360304693,1746735038479,-152.0,0.00011178,2]
[360304695,1746735038488,-155.0,0.00011262,2]
[360304697,1746735038498,-197.5370859,0.00011262,2]
[360304698,1746735038508,-151.0,0.00011262,2]
[360304699,1746735038518,-152.00857689,0.00011262,2]
[360304700,1746735038528,-151.0,0.00011268,2]
[360304701,1746735038538,-288070.28217118,0.00011269,2]
[360304702,1746735038557,-1288.89234448,0.00011269,2]
[360304703,1746735038570,-446.61247371,0.00011269,2]
[360304704,1746735038676,-500.0,0.00011011,2]
[360304705,1746735038686,-147.97717085,0.00011011,2]
[360305132,1746735044699,-352.02282915,0.00011011,2]
[360305134,1746735044709,-400.0,0.00011014,2]
[360305136,1746735044718,-400.0,0.00011014,2]
[360305138,1746735044728,-115.93467805,0.00011014,2]
[360305318,1746735046386,-284.06532195,0.00011014,2]
[360305320,1746735046395,-25.67467805,0.00011014,2]
[360306471,1746735280316,-150.0,0.00037125,120]
[360306472,1746735280342,-3912.319879,0.00037125,120]
[360306473,1746735280365,-612.31807495,0.00037125,30]
[360306474,1746735280388,-1175.6366456,0.00037125,30]
[360306475,1746735280413,-260.6232831,0.00037125,120]
[360306476,1746735280437,-543.23825461,0.00037125,120]
[360306477,1746735280461,-910.08578108,0.00037125,120]
[360306478,1746735280485,-839.44218208,0.00037125,120]
[360306479,1746735280509,-683.95056752,0.00037125,120]
[360306480,1746735280548,-240.82074905,0.00037125,120]
[360306481,1746735280573,-2000.0,0.00037125,120]
[360306482,1746735280598,-242.43521183,0.00037125,30]
[360306483,1746735280622,-1093.64409083,0.00037125,120]
[360306484,1746735280648,-2582.11204549,0.00037125,120]
[360306485,1746735280672,-1001.12427961,0.00037125,120]
[360306486,1746735280697,-423.85949198,0.00037125,120]
[360306487,1746735280721,-214.541319,0.00037125,120]
[360306488,1746735280745,-314.96497222,0.00037125,120]
[360306489,1746735280768,-202.46555566,0.00037125,120]
[360306490,1746735280793,-2542.19139716,0.00037125,120]
[360306491,1746735280816,-1000.0,0.00037125,120]
[360306492,1746735280839,-1000.0,0.00037125,120]
[360306493,1746735280863,-500.0,0.00037125,120]
[360306494,1746735280886,-989.0,0.00037125,120]
[360306495,1746735280910,-411.0,0.00037125,120]
[360306496,1746735280935,-5120.35340952,0.00037125,30]
[360306497,1746735280959,-6071.28923687,0.00037125,30]
[360306498,1746735280984,-50720.06317548,0.00037125,30]
[360306499,1746735281008,-18593.8708035,0.00037125,30]
[360306500,1746735281032,-489411.08211962,0.00037125,60]
[360306501,1746735281058,-17709.12174245,0.00037125,30]
[360306502,1746735281081,-21300.07566441,0.00037125,30]
[360306503,1746735281105,-8373.43056406,0.00037125,30]
[360306504,1746735281129,-15599.96763112,0.00037125,60]
[360306505,1746735281156,-2000.0,0.00037125,120]
[360306506,1746735281396,-2000.0,0.00037125,120]
[360306507,1746735281427,-178.0,0.00037125,120]
[360306508,1746735281451,-50000.0,0.00037125,44]
[360306509,1746735281474,-1964515.73948341,0.00037125,30]
[360306510,1746735281498,-1935.50460666,0.00037125,120]
[360306511,1746735281522,-1778.0,0.00037125,120]
[360306512,1746735281551,-1180.932006,0.00037125,35]
[360306513,1746735281575,-2301.16348384,0.00037125,120]
[360306514,1746735281599,-2210.0,0.00037125,120]
[360306515,1746735281622,-535.0,0.00037125,30]
[360306516,1746735281647,-500.0,0.00037125,30]
[360306517,1746735281670,-500.0,0.00037125,60]
[360306518,1746735281693,-500.0,0.00037125,60]
[360306519,1746735281716,-500.0,0.00037125,90]
[360306520,1746735281739,-500.0,0.00037125,90]
[360306521,1746735281763,-1500.0,0.00037125,120]
[360306522,1746735281789,-10000.0,0.00037125,30]
[360306523,1746735281812,-2117.10361061,0.00037125,120]
[360306524,1746735281836,-1602.0,0.00037125,120]
[360306525,1746735281859,-235925.76899218,0.00037125,32]
[360306526,1746735281883,-4595.68498342,0.00037125,30]
[360306527,1746735281906,-893.8220524,0.00037125,35]
[360306528,1746735281930,-55486.25265368,0.00037125,60]
[360306529,1746735287171,-505669.0809528,0.00037125,60]
[360306530,1746735287194,-1418.60145592,0.00037125,60]
[360306531,1746735287217,-621255.0,0.00037125,30]
[360306532,1746735287243,-25928.0,0.00037125,60]
[360306533,1746735287267,-2225.38890585,0.00037125,120]
[360306534,1746735287290,-958.4441858,0.00037125,35]
[360306535,1746735287315,-1135.37175845,0.00037125,120]
[360306536,1746735287339,-1427.79174725,0.00037125,30]
[360306537,1746735287364,-1654.0,0.00037125,120]
[360306538,1746735287389,-10000.0,0.00037125,30]
[360306539,1746735287413,-26935.20638596,0.00037125,120]
[360306540,1746735287438,-975.191968,0.00037125,35]
[360306541,1746735287461,-484.99765572,0.00037125,120]
[360306542,1746735287484,-1706.0,0.00037125,120]
[360306543,1746735287508,-24135.6732537,0.00037125,30]
[360306544,1746735287531,-4724.67569361,0.00037125,31]
[360306545,1746735287556,-2985.0,0.00037125,120]
[360306546,1746735287579,-16469.51421623,0.00037125,32]
[360306547,1746735287601,-70377.0,0.00037125,32]
[360306548,1746735287624,-97019.61201299,0.00037125,39]
[360306549,1746735287648,-1008.270128,0.00037125,35]
[360306550,1746735287672,-1764.0,0.00037125,120]
[360306551,1746735287696,-3000.0,0.00037125,120]
[360306552,1746735287721,-2582.68176851,0.00037125,60]
[360306553,1746735287745,-1875.35340626,0.00037125,120]
[360306554,1746735287769,-3181.79594894,0.00037125,120]
[360306555,1746735287792,-534.74341263,0.00037125,120]
[360306556,1746735287816,-2446.71737051,0.00037125,120]
[360306557,1746735287841,-12133.98795,0.00037125,31]
[360306558,1746735287866,-4694.27793245,0.00037125,120]
[360306559,1746735287891,-1020.99,0.00037125,30]
[360306560,1746735287916,-150.0,0.00037125,31]
[360306561,1746735287941,-175.0,0.00037125,31]
[360306562,1746735287966,-350.0,0.00037125,31]
[360306563,1746735287989,-441.0,0.00037125,31]
[360306564,1746735288013,-680.0,0.00037125,31]
[360306565,1746735288038,-699.0,0.00037125,31]
[360306566,1746735288063,-1080.0,0.00037125,31]